fUST/lending_fUST_20260107
["ID","MTS","AMOUNT","RATE_DAILY","PERIOD"]
[400678515,1767777086797,-717.62,0.00032054,2]
[400678516,1767777086807,-500.0,0.00032054,2]
[400678517,1767777086817,-1076.6,0.00032054,2]
[400678518,1767777086826,-2787.6,0.00032054,2]
[400678519,1767777086836,-3498.13314812,0.00032054,2]
[400678520,1767777086846,-689.83,0.00032054,2]
[400678521,1767777086856,-836.4,0.00032054,2]
[400678522,1767777086866,-505.05,0.00032054,2]
[400678523,1767777086876,-853.68,0.00032054,2]
[400678524,1767777086885,-273.85186751,0.00032054,2]
[400678525,1767777086895,-3088.57,0.00032054,2]
[400678526,1767777086904,-797.84,0.00032054,2]
[400678527,1767777086914,-725.03,0.00032054,2]
[400678528,1767777086924,-690.11,0.00032054,2]
[400678529,1767777086933,-160.0,0.00032073,120]
[400678530,1767777086943,-312.0,0.00032124,120]
[400678531,1767777086956,-775.0,0.00032145,2]
[400678532,1767777086966,-500.0,0.0003216,2]
[400678533,1767777086975,-2770.0,0.00032183,2]
[400678534,1767777086986,-775.0,0.00032197,2]
[400678535,1767777086999,-740.38982778,0.00032198,2]
[400678536,1767777087010,-3576.76245303,0.00032198,2]
[400678537,1767777087019,-699.60437027,0.00032211,2]
[400678538,1767777087028,-358.1578624,0.000323,120]
[400678539,1767777087038,-1924.25,0.000323,7]
[400678540,1767777087047,-1606.0,0.00032322,2]
[400678541,1767777087057,-599.86752768,0.00032328,2]
[400678542,1767777087066,-151.0,0.00032328,31]
[400678543,1767777087076,-151.0,0.00032328,31]
[400678544,1767777087085,-234.556182,0.00032328,31]
[400678545,1767777087099,-292.141919,0.00032328,31]
[400678546,1767777087108,-601.36,0.00032328,2]
[400678547,1767777087117,-756.53,0.00032328,2]
[400678548,1767777087127,-531.76932793,0.00032328,2]
[400678549,1767777087138,-836.74,0.00032328,2]
[400678550,1767777087147,-913.08,0.00032328,2]
[400678551,1767777087156,-500.0,0.00032328,2]
[400678552,1767777087168,-235.35483588,0.00032328,2]
[400678553,1767777087177,-548.79,0.00032328,2]
[400678554,1767777087187,-582.84,0.00032328,2]
[400678555,1767777087196,-500.0,0.00032328,2]
[400678556,1767777087205,-3962.5,0.00032328,2]
[400678557,1767777087214,-557.84,0.00032328,2]
[400678558,1767777087223,-500.0,0.00032328,2]
[400678559,1767777087233,-678.0,0.00032328,2]
[400678560,1767777087243,-500.0,0.00032328,2]
[400678561,1767777087252,-2251.87,0.00032328,2]
[400678562,1767777087262,-637.59,0.00032328,2]
[400678563,1767777087272,-909.99,0.00032328,2]
[400678564,1767777087281,-500.0,0.00032328,2]
[400678565,1767777087291,-14665.45,0.00032328,2]
[400678566,1767777087300,-956.27,0.00032328,2]
[400678567,1767777087310,-661.34,0.00032328,2]
[400678568,1767777087319,-500.0,0.00032328,2]
[400678569,1767777087329,-927.69,0.00032328,2]
[400678570,1767777087339,-500.0,0.00032328,2]
[400678571,1767777087350,-4613.91,0.00032328,2]
[400678572,1767777087360,-717.62,0.00032328,2]
[400678573,1767777087369,-500.0,0.00032328,2]
[400678574,1767777087379,-1076.6,0.00032328,2]
[400678575,1767777087389,-2787.6,0.00032328,2]
[400678576,1767777087398,-3498.13314812,0.00032328,2]
[400678577,1767777087408,-689.83,0.00032328,2]
[400678578,1767777087418,-836.4,0.00032328,2]
[400678579,1767777087427,-505.05,0.00032328,2]
[400678580,1767777087437,-853.68,0.00032328,2]
[400678581,1767777087447,-3088.57,0.00032328,2]
[400678582,1767777087456,-797.84,0.00032328,2]
[400678583,1767777087466,-725.03,0.00032328,2]
[400678584,1767777087476,-690.11,0.00032328,2]
[400678585,1767777087486,-151.0,0.000324,31]
[400678586,1767777087495,-1000.0,0.000324,120]
[400678587,1767777087505,-1608.0,0.00032411,2]
[400678588,1767777087514,-2000.0,0.00032422,7]
[400678589,1767777087524,-3465.07281653,0.00032424,2]
[400678590,1767777087533,-775.0,0.00032445,7]
[400678591,1767777087543,-2811.62,0.000325,14]
[400678592,1767777087552,-151.0,0.000325,31]
[400678593,1767777087562,-151.0,0.000325,31]
[400678594,1767777087571,-151.0,0.000325,31]
[400678595,1767777087581,-151.0,0.000325,31]
[400678596,1767777087591,-151.0,0.000325,31]
[400678597,1767777087600,-892.0,0.00032503,120]
[400678598,1767777087610,-191.37491647,0.00032577,22]
[400678599,1767777087620,-601.36,0.00032602,2]
[400678600,1767777087631,-756.53,0.00032602,2]
[400678601,1767777087640,-836.74,0.00032602,2]
[400678602,1767777087650,-913.08,0.00032602,2]
[400678603,1767777087659,-500.0,0.00032602,2]
[400678604,1767777087669,-402.32,0.00032602,33]
[400678605,1767777087679,-548.79,0.00032602,2]
[400678606,1767777087688,-582.84,0.00032602,2]
[400678607,1767777087697,-500.0,0.00032602,2]
[400678608,1767777087707,-3962.5,0.00032602,2]
[400678609,1767777087716,-557.84,0.00032602,2]
[400678610,1767777087726,-500.0,0.00032602,2]
[400678611,1767777087735,-678.0,0.00032602,2]
[400678612,1767777087744,-500.0,0.00032602,2]
[400678613,1767777087753,-2251.87,0.00032602,2]
[400678614,1767777087762,-637.59,0.00032602,2]
[400678615,1767777087772,-909.99,0.00032602,2]
[400678616,1767777087783,-500.0,0.00032602,2]
[400678617,1767777087792,-14665.45,0.00032602,2]
[400678618,1767777087801,-956.27,0.00032602,2]
[400678619,1767777087810,-661.34,0.00032602,2]
[400678620,1767777087820,-500.0,0.00032602,2]
[400678621,1767777087829,-927.69,0.00032602,2]
[400678622,1767777087838,-373.08658913,0.00032602,2]
[400678623,1767777087848,-4613.91,0.00032602,2]
[400678624,1767777087857,-717.62,0.00032602,2]
[400678625,1767777087867,-511.73620221,0.00032602,2]
[400678626,1767777087876,-1076.6,0.00032602,2]
[400678627,1767777087886,-2787.6,0.00032602,2]
[400678628,1767777087896,-3498.13314812,0.00032602,2]
[400678629,1767777087906,-836.4,0.00032602,2]
[400678630,1767777087916,-505.05,0.00032602,2]
[400678631,1767777087926,-853.68,0.00032602,2]
[400678632,1767777087935,-689.83,0.00032602,2]
[400678633,1767777087944,-3088.57,0.00032602,2]
[400678634,1767777087953,-797.84,0.00032602,2]
[400678635,1767777087962,-725.03,0.00032602,2]
[400678636,1767777087972,-690.11,0.00032602,2]
[400678637,1767777087981,-535.0,0.00032627,120]
[400678638,1767777087991,-4366.61819064,0.00032648,33]
[400678639,1767777088001,-346.1,0.00032672,5]
[400678640,1767777088010,-2771.0,0.00032719,2]
[400678641,1767777088020,-775.0,0.00032728,2]
[400678642,1767777088029,-475.0,0.00032745,120]
[400678643,1767777088039,-636.23441335,0.00032746,2]
[400678644,1767777088049,-160.0,0.00032749,3]
[400678645,1767777088059,-1000.0,0.00032751,30]
[400678646,1767777088068,-1000.0,0.00032751,30]
[400678647,1767777088078,-1000.0,0.00032751,30]
[400678648,1767777088088,-715.0,0.00032751,30]
[400678649,1767777088101,-601.36,0.00032876,2]
[400678650,1767777088111,-756.53,0.00032876,2]
[400678651,1767777088121,-836.74,0.00032876,2]
[400678652,1767777088135,-913.08,0.00032876,2]
[400678653,1767777088144,-500.0,0.00032876,2]
[400678654,1767777088154,-548.79,0.00032876,2]
[400678655,1767777088163,-582.84,0.00032876,2]
[400678656,1767777088175,-500.0,0.00032876,2]
[400678657,1767777088184,-500.0,0.00032876,2]
[400678658,1767777088194,-500.0,0.00032876,2]
[400678659,1767777088203,-500.0,0.00032876,2]
[400678660,1767777088213,-500.0,0.00032876,2]
[400678661,1767777088222,-500.0,0.00032876,2]
[400678662,1767777088231,-500.0,0.00032876,2]
[400678663,1767777088241,-500.0,0.00032876,2]
[400678664,1767777088251,-500.0,0.00032876,2]
[400678665,1767777088260,-500.0,0.00032876,2]
[400678666,1767777088270,-500.0,0.00032876,2]
[400678667,1767777088280,-500.0,0.00032876,2]
[400678668,1767777088289,-500.0,0.00032876,2]
[400678669,1767777088299,-500.0,0.00032876,2]
[400678670,1767777088308,-500.0,0.00032876,2]
[400678671,1767777088318,-500.0,0.00032876,2]
[400678672,1767777088327,-500.0,0.00032876,2]
[400678673,1767777088337,-500.0,0.00032876,2]
[400678674,1767777088346,-310.34744262,0.00032876,2]
[400678675,1767777088356,-3962.5,0.00032876,2]
[400678676,1767777088366,-557.84,0.00032876,2]
[400678677,1767777088375,-500.0,0.00032876,2]
[400678678,1767777088385,-678.0,0.00032876,2]
[400678679,1767777088396,-178.86078328,0.00032876,2]
[400678680,1767777088406,-2251.87,0.00032876,2]
[400678681,1767777088415,-475.0,0.00032876,120]
[400678682,1767777088425,-637.59,0.00032876,2]
[400678683,1767777088435,-909.99,0.00032876,2]
[400678684,1767777088445,-500.0,0.00032876,2]
[400678685,1767777088455,-14665.45,0.00032876,2]
[400678686,1767777088464,-956.27,0.00032876,2]
[400678687,1767777088473,-661.34,0.00032876,2]
[400678688,1767777088483,-647.61425477,0.00032876,2]
[400678689,1767777088493,-927.69,0.00032876,2]
[400678690,1767777088503,-4613.91,0.00032876,2]
[400678691,1767777088513,-717.62,0.00032876,2]
[400678692,1767777088523,-2410.47,0.00032876,120]
[400678693,1767777088533,-1076.6,0.00032876,2]
[400678694,1767777088543,-2787.6,0.00032876,2]
[400678695,1767777088552,-3498.13314812,0.00032876,2]
[400678696,1767777088562,-836.4,0.00032876,2]
[400678697,1767777088571,-505.05,0.00032876,2]
[400678698,1767777088580,-853.68,0.00032876,2]
[400678699,1767777088590,-689.83,0.00032876,2]
[400678700,1767777088600,-3088.57,0.00032876,2]
[400678701,1767777088610,-797.84,0.00032876,2]
[400678702,1767777088620,-725.03,0.00032876,2]
[400678703,1767777088629,-690.11,0.00032876,2]
[400678704,1767777088639,-20184.84,0.00032877,10]
[400678705,1767777088648,-31515.26,0.00032877,10]
[400678706,1767777088658,-268.0,0.00032877,120]
[400678707,1767777088668,-151.0,0.00032877,31]
[400678708,1767777088677,-151.0,0.00032877,31]
[400678709,1767777088686,-184.812283,0.00032877,31]
[400678710,1767777088695,-184.812283,0.00032877,31]
[400678711,1767777088705,-184.812283,0.00032877,31]
[400678712,1767777088715,-184.812291,0.00032877,31]
[400678713,1767777088726,-775.0,0.00032885,2]
[400678714,1767777088736,-775.0,0.0003289,2]
[400678715,1767777088746,-475.0,0.000329,120]
[400678716,1767777088756,-475.0,0.000329,120]
[400678717,1767777088767,-1247.79119589,0.000329,120]
[400678718,1767777088776,-5000.0,0.00032913,2]
[400678719,1767777088786,-10000.0,0.00033,2]
[400678720,1767777088795,-299.80024845,0.00033,30]
[400678721,1767777088805,-152.29334106,0.00033,120]
[400678722,1767777088816,-166.0,0.00033,14]
[400678723,1767777088826,-1019.0,0.00033,7]
[400678724,1767777088836,-316.0,0.00033,14]
[400678725,1767777088845,-1607.0,0.00033011,7]
[400678726,1767777088855,-775.0,0.00033028,2]
[400678727,1767777088865,-153.683464,0.00033064,31]
[400678728,1767777088875,-151.0,0.00033064,31]
[400678729,1767777088885,-151.0,0.00033064,31]
[400678730,1767777088895,-151.0,0.00033064,31]
[400678731,1767777089079,-151.0,0.00033064,31]
[400678732,1767777089090,-151.0,0.00033064,31]
[400678733,1767777089104,-475.0,0.00033141,120]
[400678734,1767777089113,-601.36,0.0003315,2]
[400678735,1767777089123,-756.53,0.0003315,2]
[400678736,1767777089132,-836.74,0.0003315,2]
[400678737,1767777089143,-913.08,0.0003315,2]
[400678738,1767777089152,-500.0,0.0003315,2]
[400678739,1767777089162,-402.32,0.0003315,34]
[400678740,1767777089172,-151.0,0.0003315,31]
[400678741,1767777089181,-151.0,0.0003315,31]
[400678742,1767777089190,-151.0,0.0003315,31]
[400678743,1767777089200,-548.79,0.0003315,2]
[400678744,1767777089209,-582.84,0.0003315,2]
[400678745,1767777089219,-500.0,0.0003315,2]
[400678746,1767777089230,-209.524359,0.0003315,31]
[400678747,1767777089240,-209.524359,0.0003315,31]
[400678748,1767777089250,-3962.5,0.0003315,2]
[400678749,1767777089260,-209.524359,0.0003315,31]
[400678750,1767777089270,-209.524365,0.0003315,31]
[400678751,1767777089280,-241.004676,0.0003315,31]
[400678752,1767777089289,-241.004676,0.0003315,31]
[400678753,1767777089299,-241.004676,0.0003315,31]
[400678754,1767777089308,-186.329815,0.0003315,31]
[400678755,1767777089318,-186.329815,0.0003315,31]
[400678756,1767777089328,-241.004669,0.0003315,31]
[400678757,1767777089338,-186.329815,0.0003315,31]
[400678758,1767777089347,-186.329815,0.0003315,31]
[400678759,1767777089358,-151.0,0.0003315,31]
[400678760,1767777089368,-530.111159,0.0003315,31]
[400678761,1767777089378,-557.84,0.0003315,2]
[400678762,1767777089387,-225.672265,0.0003315,31]
[400678763,1767777089397,-530.111159,0.0003315,31]
[400678764,1767777089408,-324.65,0.0003315,2]
[400678765,1767777089418,-225.672265,0.0003315,31]
[400678766,1767777089428,-225.672265,0.0003315,31]
[400678767,1767777089438,-530.111159,0.0003315,31]
[400678768,1767777089447,-678.0,0.0003315,2]
[400678769,1767777089456,-225.672258,0.0003315,31]
[400678770,1767777089465,-530.111152,0.0003315,31]
[400678771,1767777089474,-218.702509,0.0003315,31]
[400678772,1767777089484,-218.702509,0.0003315,31]
[400678773,1767777089493,-218.702509,0.0003315,31]
[400678774,1767777089502,-218.702508,0.0003315,31]
[400678775,1767777089512,-2251.87,0.0003315,2]
[400678776,1767777089520,-637.59,0.0003315,2]
[400678777,1767777089530,-909.99,0.0003315,2]
[400678778,1767777089540,-500.0,0.0003315,2]
[400678779,1767777089551,-14665.45,0.0003315,2]
[400678780,1767777089561,-956.27,0.0003315,2]
[400678781,1767777089573,-661.34,0.0003315,2]
[400678782,1767777089583,-927.69,0.0003315,2]
[400678783,1767777089593,-4613.91,0.0003315,2]
[400678784,1767777089603,-717.62,0.0003315,2]
[400678785,1767777089613,-1076.6,0.0003315,2]
[400678786,1767777089624,-2787.6,0.0003315,2]
[400678787,1767777089635,-3498.13314812,0.0003315,2]
[400678788,1767777089647,-836.4,0.0003315,2]
[400678789,1767777089657,-505.05,0.0003315,2]
[400678790,1767777089669,-853.68,0.0003315,2]
[400678791,1767777089681,-689.83,0.0003315,2]
[400678792,1767777089692,-3088.57,0.0003315,2]
[400678793,1767777089703,-797.84,0.0003315,2]
[400678794,1767777089714,-725.03,0.0003315,2]
[400678795,1767777089726,-690.11,0.0003315,2]
[400678796,1767777089736,-316.0,0.00033151,30]
[400678797,1767777089746,-151.0,0.00033174,31]
[400678798,1767777089756,-151.0,0.00033174,31]
[400678799,1767777089766,-151.0,0.00033174,31]
[400678800,1767777089776,-151.0,0.00033174,31]
[400678801,1767777089786,-151.0,0.00033174,31]
[400678802,1767777089795,-2000.0,0.0003318,7]
[400678803,1767777089805,-475.0,0.00033181,120]
[400678804,1767777089815,-151.0,0.00033198,31]
[400678805,1767777089824,-151.0,0.00033198,31]
[400678806,1767777089834,-151.0,0.00033198,31]
[400678807,1767777089843,-151.0,0.00033198,31]
[400678808,1767777089853,-151.0,0.00033198,31]
[400678809,1767777089864,-175.703798,0.00033198,31]
[400678810,1767777089874,-609.666208,0.00033198,31]
[400678811,1767777089884,-609.666208,0.00033198,31]
[400678812,1767777089895,-609.666208,0.00033198,31]
[400678813,1767777089904,-609.666208,0.00033198,31]
[400678814,1767777089914,-214.456704,0.00033198,31]
[400678815,1767777089924,-214.456704,0.00033198,31]
[400678816,1767777089934,-214.456704,0.00033198,31]
[400678817,1767777089943,-214.456704,0.00033198,31]
[400678818,1767777089952,-1626.684503,0.00033198,31]
[400678819,1767777089961,-1626.684503,0.00033198,31]
[400678820,1767777089971,-1626.684503,0.00033198,31]
[400678821,1767777089982,-1626.684503,0.00033198,31]
[400678822,1767777089992,-151.0,0.00033198,31]
[400678823,1767777090002,-151.0,0.00033198,31]
[400678824,1767777090011,-151.0,0.00033198,31]
[400678825,1767777090021,-194.927323,0.00033198,31]
[400678826,1767777090030,-194.927323,0.00033198,31]
[400678827,1767777090039,-194.927323,0.00033198,31]
[400678828,1767777090053,-194.927314,0.00033198,31]
[400678829,1767777090063,-457383.0940013,0.00033198,30]
[400678830,1767777090699,-3e-08,0.00026718,2]
[400678831,1767777090898,-549.70744826,0.0001716,2]
[400678832,1767777090951,-433.44259697,0.0001716,2]
[400678833,1767777090966,-2253.55624569,0.0001716,2]
[400678834,1767777091172,215.922,0.00029073,120]
[400678835,1767777091248,1000.0,0.00029073,120]
[400678836,1767777091280,1000.0,0.00029073,120]
[400678837,1767777091314,1000.0,0.00029073,120]
[400678838,1767777091346,1000.0,0.00029073,120]
[400678839,1767777091386,1000.0,0.00029073,120]
[400678840,1767777091427,1000.0,0.00029073,120]
[400678841,1767777091475,1000.0,0.00029073,120]
[400678842,1767777091521,1000.0,0.00029073,120]
[400678843,1767777091555,1000.0,0.00029073,120]
[400678844,1767777091589,475.0,0.00029,120]
[400678845,1767777091637,475.0,0.00029,120]
[400678846,1767777091678,475.0,0.00029,120]
[400678847,1767777091709,475.0,0.00029,120]
[400678848,1767777091742,475.0,0.00029,120]
[400678849,1767777091785,475.0,0.00029,120]
[400678850,1767777091818,475.0,0.00029,120]
[400678851,1767777091852,475.0,0.00029,120]
[400678852,1767777091887,475.0,0.00029,120]
[400678853,1767777091921,475.0,0.00029,120]
[400678854,1767777091956,475.0,0.00029,120]
[400678855,1767777091994,475.0,0.00029,120]
[400678856,1767777092053,475.0,0.00029,120]
[400678857,1767777092086,475.0,0.00029,120]
[400678858,1767777092279,475.0,0.00029,120]
[400678859,1767777092331,475.0,0.00029,120]
[400678860,1767777092387,475.0,0.00029,120]
[400678861,1767777092418,475.0,0.00029,120]
[400678862,1767777092450,475.0,0.00029,120]
[400678863,1767777092487,475.0,0.00029,120]
[400678864,1767777092532,475.0,0.00029,120]
[400678865,1767777092570,475.0,0.00029,120]
[400678866,1767777092601,475.0,0.00029,120]
[400678867,1767777092641,475.0,0.00029,120]
[400678868,1767777092675,475.0,0.00029,120]
[400678869,1767777092711,475.0,0.00029,120]
[400678870,1767777092746,475.0,0.00029,120]
[400678871,1767777092787,475.0,0.00029,120]
[400678872,1767777092889,475.0,0.00029,120]
[400678873,1767777092995,475.0,0.00029,120]
[400678874,1767777093027,475.0,0.00029,120]
[400678875,1767777093060,475.0,0.00029,120]
[400678876,1767777103286,342.287,0.00011983,2]
[400678877,1767777121271,161.04,0.00010556,2]
[400678878,1767777124465,475.0,0.000289,120]
[400678879,1767777124815,475.0,0.000289,120]
[400678880,1767777125117,475.0,0.000289,120]
[400678881,1767777125420,475.0,0.000289,120]
[400678882,1767777126598,475.0,0.000289,120]
[400678883,1767777126915,475.0,0.000289,120]
[400678884,1767777127321,475.0,0.000289,120]
[400678885,1767777127650,475.0,0.000289,120]
[400678886,1767777127937,475.0,0.000289,120]
[400678887,1767777128280,475.0,0.000289,120]
[400678888,1767777128589,475.0,0.000289,120]
[400678889,1767777188189,155.0,6e-05,2]
[400678890,1767777216510,-151.0,0.000122,2]
[400678891,1767777216538,-151.0,0.000122,2]
[400678892,1767777216566,-151.0,0.000122,2]
[400678893,1767777216594,-151.0,0.000122,2]
[400678894,1767777216621,-151.0,0.000122,2]
[400678895,1767777216648,-151.0,0.000122,2]
[400678896,1767777216676,-151.0,0.000122,2]
[400678897,1767777216703,-151.0,0.000122,2]
[400678898,1767777216730,-151.0,0.000122,2]
[400678899,1767777216760,-151.0,0.000122,2]
[400678900,1767777216788,-500.0,0.00012227,2]
[400678901,1767777216816,-500.0,0.00012227,2]
[400678902,1767777216844,-500.0,0.00012227,2]
[400678903,1767777216872,-429.64554357,0.00012227,2]
[400678904,1767777216900,-500.0,0.00012227,2]
[400678905,1767777216927,-500.0,0.00012227,2]
[400678906,1767777217164,-500.0,0.00012227,2]
[400678907,1767777218767,-500.0,0.00012227,2]
[400678908,1767777218799,-500.0,0.00012227,2]
[400678909,1767777218830,-189.26020178,0.00012227,2]
[400678910,1767777218862,-500.0,0.00012227,2]
[400678911,1767777218893,-500.0,0.00012227,2]
[400678912,1767777218924,-500.0,0.00012227,2]
[400678913,1767777218955,-500.0,0.00012227,2]
[400678914,1767777218987,-416.75834922,0.00012227,2]
[400678915,1767777219018,-500.0,0.00012227,2]
[400678916,1767777219048,-500.0,0.00012227,2]
[400678917,1767777219077,-351.12533836,0.00012227,2]
[400678918,1767777220076,-85.72222128,0.00012227,2]
[400678919,1767777220107,-500.0,0.00012227,2]
[400678920,1767777220140,-500.0,0.00012227,2]
[400678921,1767777220173,-500.0,0.00012227,2]
[400678922,1767777220202,-494.14455505,0.00012227,2]
[400678923,1767777220232,-500.0,0.00012227,2]
[400678924,1767777220261,-500.0,0.00012227,2]
[400678925,1767777220290,-557.81964482,0.00012227,2]
[400678926,1767777220318,-500.0,0.00012227,2]
[400678927,1767777220348,-500.0,0.00012227,2]
[400678928,1767777220379,-224.6371577,0.00012227,2]
[400678929,1767777220856,-275.3628423,0.00012227,2]
[400678930,1767777220886,-500.0,0.00012227,2]
[400678931,1767777220915,-500.0,0.00012227,2]
[400678932,1767777220944,-500.0,0.00012227,2]
[400678933,1767777220972,-500.0,0.00012227,2]
[400678934,1767777221001,-500.0,0.00012227,2]
[400678935,1767777221029,-500.0,0.00012227,2]
[400678936,1767777221057,-500.0,0.00012227,2]
[400678937,1767777221085,-500.0,0.00012227,2]
[400678938,1767777221115,-250.0,0.00012227,2]
[400678940,1767777249463,475.0,0.00028873,120]
[400678941,1767777249768,475.0,0.00028873,120]
[400678942,1767777250069,475.0,0.00028873,120]
[400678943,1767777250374,475.0,0.00028873,120]
[400678944,1767777250710,475.0,0.00028873,120]
[400678945,1767777251023,475.0,0.00028873,120]
[400678946,1767777262862,500.0,0.00012227,2]
[400678947,1767777262914,449.2843154,0.00012227,2]
[400678948,1767777262936,50.7156846,0.00012227,2]
[400678949,1767777262972,500.0,0.00012227,2]
[400678950,1767777263024,500.0,0.00012227,2]
[400678951,1767777263132,500.0,0.00012227,2]
[400678952,1767777263194,518.10139454,0.00012227,2]
[400678953,1767777271141,500.0,0.00012227,2]
[400678954,1767777271186,500.0,0.00012227,2]
[400678955,1767777271236,500.0,0.00012227,2]
[400678956,1767777273856,5000.0,0.00012228,2]
[400678957,1767777276706,1028.04525954,0.0003,120]
[400678958,1767777296248,1431.19292086,0.00012228,2]
[400678959,1767777296273,1044.38534806,0.00012228,2]
[400678960,1767777302212,300.0,0.00012227,2]
[400678961,1767777316442,986.0,0.00028109,120]
[400678962,1767777317702,986.0,0.00029515,120]
[400678963,1767777319354,2524.42173108,0.00012228,2]
[400678964,1767777321326,161.75,7.16e-05,2]
[400678965,1767777321746,242.63,7.485e-05,2]
[400678966,1767777322154,323.5,7.811e-05,2]
[400678967,1767777323065,404.38,8.136e-05,2]
[400678968,1767777324039,485.25,8.462e-05,2]
[400678969,1767777324461,566.13,8.787e-05,2]
[400678970,1767777324877,647.0,9.112e-05,2]
[400678971,1767777325288,727.88,9.438e-05,2]
[400678972,1767777325734,808.76,9.763e-05,2]
[400678973,1767777327177,1763.92292086,0.00012228,2]
[400678974,1767777327200,3236.07707914,0.00012228,2]
[400678975,1767777329013,267.0,0.00026606,120]
[400678980,1767777349735,5000.0,0.00012228,2]
[400678981,1767777362594,300.0,0.00012227,2]
[400678982,1767777365710,1463.93292086,0.00012228,2]
[400678983,1767777365733,3536.06707914,0.00012228,2]
[400678984,1767777388796,5000.0,0.00012228,2]
[400678985,1767777398849,159.59,7.512e-05,2]
[400678986,1767777399272,199.49,7.825e-05,2]
[400678987,1767777399679,239.39,8.138e-05,2]
[400678988,1767777400081,279.29,8.451e-05,2]
[400678989,1767777400490,319.19,8.764e-05,2]
[400678990,1767777400946,266.99292086,9.077e-05,2]
[400678991,1767777400971,92.09707914,9.077e-05,2]
[400678992,1767777401351,398.99,9.39e-05,2]
[400678993,1767777411248,5000.0,0.00012228,2]
[400678994,1767777422745,300.0,0.00012227,2]
[400678995,1767777433810,4208.92292086,0.00012228,2]
[400678996,1767777433833,791.07707914,0.00012228,2]
[400678997,1767777436863,500.0,0.00012227,2]
[400678998,1767777436896,500.0,0.00012227,2]
[400678999,1767777436925,500.0,0.00012227,2]
[400679000,1767777436962,500.0,0.00012227,2]
[400679001,1767777436990,500.0,0.00012227,2]
[400679002,1767777437018,487.00892918,0.00012227,2]
[400679003,1767777437046,500.0,0.00012227,2]
[400679004,1767777437074,500.0,0.00012227,2]
[400679005,1767777437103,500.0,0.00012227,2]
[400679006,1767777437132,500.0,0.00012227,2]
[400679007,1767777437164,500.0,0.00012227,2]
[400679008,1767777437198,500.0,0.00012227,2]
[400679009,1767777437367,500.0,0.00012227,2]
[400679010,1767777437394,271.27386425,0.00012227,2]
[400679011,1767777437422,500.0,0.00012227,2]
[400679012,1767777437449,500.0,0.00012227,2]
[400679013,1767777437476,500.0,0.00012227,2]
[400679014,1767777437506,500.0,0.00012227,2]
[400679015,1767777437535,450.65012743,0.00012227,2]
[400679016,1767777437558,49.34987257,0.00012227,2]
[400679017,1767777437586,500.0,0.00012227,2]
[400679018,1767777437621,500.0,0.00012227,2]
[400679019,1767777437651,500.0,0.00012227,2]